bitfinex/quotes_SOLUSD_20250621
["timestamp","ask_amount","ask_price","bid_price","bid_amount"]
[1750512709661,18.64964886,142.17,142.14,13.2805767]
[1750512709831,5.2713316,142.16,142.14,13.2805767]
[1750512710029,0.7,142.16,142.14,13.2805767]
[1750512714867,19.34964886,142.14,142.13,9.42711486]
[1750512715037,30.8680329,142.14,142.13,9.42711486]
[1750512719869,37.90335019,142.14,142.13,9.42711486]
[1750512720170,52.7538097,142.14,142.13,9.42711486]
[1750512720842,44.64964886,142.1,142.06,7.03893883]
[1750512721043,0.7,142.08,142.06,7.03893883]
[1750512722070,0.7,142.08,142.05,7.03977472]
[1750512722475,6.24525941,142.09,142.05,13.28503413]
[1750512722679,24.89490827,142.1,142.06,6.24525941]
[1750512722979,0.7,142.09,142.06,6.24525941]
[1750512724061,0.7,142.09,142.07,7.03878369]
[1750512726564,6.94525941,142.09,142.07,7.03878369]
[1750512726761,6.24525941,142.09,142.07,7.03878369]
[1750512727091,6.94525941,142.08,142.04,5.98]
[1750512727272,6.94525941,142.07,142.04,5.98]
[1750512727585,0.7,142.06,142.04,7.04027034]
[1750512728763,0.7,142.06,142.03,7.04076603]
[1750512731258,0.7,142.06,142.03,13.28602544]
[1750512735287,0.7,142.06,142.02,23.84829756]
[1750512736365,0.7,142.06,142.02,30.88955935]
[1750512738370,6.93525941,142.04,142.02,7.04126179]
[1750512738562,0.69,142.02,142.0,7.04225352]
[1750512741484,6.93525941,142.02,142.0,7.04225352]
[1750512741689,6.24525941,142.02,142.0,7.04225352]
[1750512741998,18.64964886,142.03,141.98,7.04324552]
[1750512741999,6.93525941,142.01,141.98,7.04324552]
[1750512742166,6.24525941,142.0,141.98,7.04324552]
[1750512742486,6.93525941,141.99,141.98,7.04324552]
[1750512743289,0.69,141.98,141.96,7.04423781]
[1750512743791,6.93525941,141.98,141.96,7.04423781]
[1750512744797,10.46733842,141.98,141.96,7.04423781]
[1750512744968,10.46733842,141.99,141.96,7.04423781]
[1750512745770,18.64964886,142.0,141.96,7.04423781]
[1750512745771,18.64964886,142.0,141.97,9.77733842]
[1750512746295,19.33964886,142.0,141.97,9.77733842]
[1750512746668,29.11698728,142.0,141.96,34.43217076]
[1750512747687,9.77733842,141.99,141.95,7.04473406]
[1750512747897,0.69,141.98,141.95,16.82207248]
[1750512751390,0.69,141.99,141.95,34.43390763]
[1750512753896,28.42698728,142.0,141.95,34.43390763]
[1750512754070,0.69,141.99,141.95,34.43390763]
[1750512754497,10.46733842,141.99,141.95,34.43390763]
[1750512756198,0.69,141.98,141.95,50.65656921]
[1750512756414,0.69,141.97,141.95,33.04473406]
[1750512757298,9.77733842,141.98,141.95,33.04473406]
[1750512757493,10.46733842,141.97,141.95,33.04473406]
[1750512757797,0.69,141.96,141.95,33.04473406]
[1750512758510,0.69,141.97,141.95,33.04473406]
[1750512758711,18.64964886,141.98,141.95,33.04473406]
[1750512758890,18.64964886,141.98,141.95,7.04473406]
[1750512760503,19.33964886,141.98,141.95,7.04473406]
[1750512761878,0.69,141.97,141.95,7.04473406]
[1750512763221,29.11698728,141.98,141.95,7.04473406]
[1750512763586,19.33964886,141.98,141.95,7.04473406]
[1750512763787,10.46733842,141.99,141.95,16.82207248]
[1750512763987,0.69,141.99,141.96,9.77733842]
[1750512764195,10.46733842,141.99,141.95,34.43390763]
[1750512765407,9.77733842,141.99,141.95,34.43390763]
[1750512765611,0.69,141.98,141.95,34.43390763]
[1750512768197,0.69,141.97,141.94,9.77733842]
[1750512769283,29.11698728,141.98,141.93,24.66004367]
[1750512769511,0.69,141.97,141.93,34.43738209]
[1750512770008,9.77733842,141.97,141.93,34.43738209]
[1750512770180,0.69,141.96,141.93,34.43738209]
[1750512770784,0.69,141.96,141.93,30.91873476]
[1750512771401,18.64964886,141.96,141.93,7.04572676]
[1750512771608,0.69,141.94,141.93,7.04572676]
[1750512772212,19.33964886,141.94,141.92,7.04606318]
[1750512772378,0.69,141.93,141.92,7.04606318]
[1750512773309,0.69,141.93,141.91,7.04671975]
[1750512776097,28.43248312,141.94,141.91,7.04671975]
[1750512776301,19.33964886,141.94,141.91,16.82955401]
[1750512777188,0.69,141.93,141.91,16.82955401]
[1750512778233,0.69,141.93,141.9,16.8300506]
[1750512780607,18.64964886,141.94,141.9,16.8300506]
[1750512780909,0.69,141.93,141.9,16.8300506]
[1750512786616,18.64964886,141.94,141.91,9.78283426]
[1750512788215,0.69,141.96,141.93,9.78283426]
[1750512788515,18.64964886,141.98,141.95,16.82756832]
[1750512788717,18.64964886,141.98,141.96,9.78283426]
[1750512789604,5.23689458,141.99,141.97,7.04374163]
[1750512789813,28.43248312,141.99,141.92,7.04622322]
[1750512790017,0.69,141.98,141.94,9.78283426]
[1750512791720,0.69,141.98,141.95,7.04473406]
[1750512791918,28.43248312,141.99,141.95,7.04473406]
[1750512792118,9.78283426,141.98,141.95,7.04473406]
[1750512792603,0.69,141.97,141.95,7.04473406]
[1750512792917,9.78283426,141.98,141.95,7.04473406]
[1750512793112,0.69,141.97,141.95,7.04473406]
[1750512793317,10.47283426,141.97,141.93,16.82856102]
[1750512793518,10.47283426,141.97,141.93,7.04572676]
[1750512793519,0.69,141.96,141.93,7.04572676]
[1750512793726,28.43248312,141.96,141.93,7.04572676]
[1750512794129,0.69,141.95,141.93,7.04572676]
[1750512794319,0.75,141.95,141.93,7.04572676]
[1750512794519,28.43248312,141.96,141.93,7.04572676]
[1750512795326,0.75,141.95,141.93,7.04572676]
[1750512795530,28.43248312,141.96,141.93,7.04572676]
[1750512795736,28.43248312,141.96,141.92,7.04622322]
[1750512796736,0.75,141.95,141.92,7.04622322]
[1750512797434,28.43248312,141.96,141.92,7.04622322]
[1750512797636,0.75,141.95,141.92,7.04622322]
[1750512798744,28.43248312,141.96,141.92,7.04622322]
[1750512798928,0.75,141.95,141.92,9.78283426]
[1750512800260,18.64964886,141.96,141.93,7.04572676]
[1750512800425,19.39964886,141.96,141.93,7.04572676]
[1750512801424,0.75,141.95,141.93,7.04572676]
[1750512803429,0.75,141.95,141.92,9.78283426]
[1750512803430,28.43248312,141.96,141.92,9.78283426]
[1750512803631,0.75,141.95,141.92,9.78283426]
[1750512803831,28.43248312,141.96,141.92,9.78283426]
[1750512804530,0.75,141.95,141.93,7.04572676]
[1750512805850,18.64964886,141.96,141.93,7.04572676]
[1750512806141,19.39964886,141.96,141.93,7.04572676]
[1750512809365,5.23689458,141.97,141.94,6.25901319]
[1750512809539,19.39964886,141.98,141.95,6.25901319]
[1750512809736,24.63654344,141.98,141.95,6.25901319]
[1750512810163,24.63654344,141.98,141.97,6.25901319]
[1750512810164,5.23689458,141.98,141.97,6.25901319]
[1750512810328,16.33068234,141.99,141.97,13.30275482]
[1750512812845,16.33068234,141.99,141.97,9.7734643]
[1750512813734,0.75,141.98,141.95,17.6114131]
[1750512814063,0.75,141.98,141.95,9.7734643]
[1750512814433,20.86725206,141.99,141.95,9.7734643]
[1750512814628,26.10414664,141.99,141.95,9.7734643]
[1750512814828,20.86725206,141.99,141.96,7.04423781]
[1750512815052,0.75,141.98,141.96,7.04423781]
[1750512815838,26.10414664,141.99,141.96,7.04423781]
[1750512816040,18.64964886,141.98,141.96,7.04423781]
[1750512816244,0.75,141.97,141.96,7.04423781]
[1750512816632,18.64964886,141.98,141.96,7.04423781]
[1750512816856,19.39964886,141.98,141.96,7.04423781]
[1750512820942,18.64964886,141.98,141.96,7.04423781]
[1750512821258,0.75,141.97,141.96,7.04423781]
[1750512823279,18.64964886,141.98,141.96,7.04423781]
[1750512823455,19.39964886,141.98,141.96,7.04423781]
[1750512825776,18.64964886,141.98,141.96,7.04423781]
[1750512825939,0.75,141.97,141.96,7.04423781]
[1750512826644,0.75,141.97,141.94,7.04523037]
[1750512826849,0.75,141.95,141.94,7.04523037]
[1750512827063,19.39964886,141.95,141.94,7.04523037]
[1750512828557,19.39964886,141.95,141.93,7.04572676]
[1750512829367,18.64964886,141.95,141.93,7.04572676]
[1750512829571,0.75,141.94,141.93,7.04572676]
[1750512831779,0.75,141.94,141.92,7.04622322]
[1750512831980,18.64964886,141.95,141.92,7.04622322]
[1750512832183,0.75,141.94,141.92,7.04622322]
[1750512833986,0.75,141.94,141.92,9.7734643]
[1750512834390,0.75,141.94,141.91,9.7734643]
[1750512835092,18.64964886,141.94,141.91,9.7734643]
[1750512835268,0.75,141.93,141.91,9.7734643]
[1750512836279,0.75,141.93,141.92,7.04622322]
[1750512838795,0.75,141.93,141.91,6.26055293]
[1750512840493,0.75,141.93,141.92,7.04622322]
[1750512845503,0.75,141.93,141.9,30.92581014]
[1750512845871,0.75,141.93,141.89,5.98]
[1750512845872,0.75,141.91,141.89,5.98]
[1750512846096,0.75,141.91,141.89,13.02751147]
[1750512846286,0.75,141.91,141.89,19.2880644]
[1750512847392,0.75,141.91,141.88,13.30865967]
[1750512847582,6.26055293,141.91,141.88,7.04810674]
[1750512847787,0.75,141.9,141.88,7.04810674]
[1750512849202,7.01055293,141.9,141.88,7.04810674]
[1750512849399,0.75,141.89,141.88,7.04810674]
[1750512849780,0.75,141.89,141.87,7.04870656]
[1750512850299,7.01055293,141.89,141.86,7.04904722]
[1750512850714,6.26055293,141.88,141.83,112.86086276]
[1750512850878,6.26055293,141.88,141.83,106.60030983]
[1750512851082,6.26055293,141.88,141.83,6.26055293]
[1750512851292,0.75,141.87,141.83,6.26055293]
[1750512851509,0.75,141.87,141.84,7.05007346]
[1750512851811,6.26055293,141.88,141.84,7.05007346]
[1750512852119,0.75,141.88,141.85,6.26055293]
[1750512852488,6.26055293,141.89,141.84,13.31062639]
[1750512852689,6.26055293,141.89,141.85,6.26055293]
[1750512852988,9.79062285,141.89,141.85,9.79062285]
[1750512853205,0.75,141.88,141.85,9.79062285]
[1750512853391,9.79062285,141.89,141.85,9.79062285]
[1750512853693,0.75,141.88,141.85,9.79062285]
[1750512853892,0.75,141.92,141.87,16.83932941]
[1750512854200,1.5,141.9,141.87,16.83932941]
[1750512854399,0.75,141.9,141.87,16.83932941]
[1750512854600,0.7,141.89,141.87,16.83932941]
[1750512855005,0.7,141.89,141.87,7.04870656]
[1750512855204,9.79062285,141.89,141.87,7.04870656]
[1750512855389,9.79062285,141.89,141.86,7.04904599]
[1750512855783,0.7,141.89,141.86,7.04904599]
[1750512855992,10.49062285,141.89,141.86,7.04904599]
[1750512856188,0.7,141.88,141.86,7.04904599]
[1750512857510,0.7,141.88,141.86,16.83966884]
[1750512860704,0.7,141.88,141.86,7.04904599]
[1750512864713,0.7,141.88,141.83,7.05069449]
[1750512864892,0.7,141.86,141.83,7.05069449]
[1750512865610,10.49062285,141.86,141.83,7.05069449]
[1750512865907,9.79062285,141.85,141.81,7.05168887]
[1750512866113,25.69837956,141.87,141.81,7.05168887]
[1750512866114,9.79062285,141.84,141.81,7.05168887]
[1750512866306,0.7,141.83,141.81,7.05168887]
[1750512868025,9.79062285,141.84,141.8,13.01200074]
[1750512868221,9.79062285,141.84,141.8,22.80262359]
[1750512868518,0.7,141.83,141.8,7.05200074]
[1750512868833,0.7,141.85,141.82,9.79062285]
[1750512869117,0.7,141.85,141.8,24.68246618]
[1750512869293,0.7,141.84,141.81,9.79062285]
[1750512869602,0.7,141.84,141.82,7.05119165]
[1750512870006,9.79062285,141.85,141.82,7.05119165]
[1750512870206,0.7,141.84,141.82,7.05119165]
[1750512870400,35.87667294,141.87,141.83,9.79062285]
[1750512870401,9.87667294,141.87,141.83,9.79062285]
[1750512870606,9.87667294,141.87,141.86,9.79062285]
[1750512871593,9.87667294,141.87,141.86,16.83982629]
[1750512875520,9.87667294,141.87,141.86,9.79062285]
[1750512876515,9.87667294,141.87,141.86,16.83982629]
[1750512895251,0.75,141.9,141.86,34.46283489]
[1750512895455,0.75,141.9,141.89,9.79062285]
[1750512896548,0.75,141.9,141.89,16.83833586]
[1750512903347,1.49,141.9,141.89,7.04771301]
[1750512904856,0.75,141.9,141.89,7.04771301]
[1750512905155,1.49,141.9,141.89,7.04771301]
[1750512906240,0.75,141.9,141.89,16.83833586]
[1750512908046,0.75,141.9,141.89,7.04771301]
[1750512908047,1.49,141.9,141.89,7.04771301]
[1750512910052,0.75,141.9,141.88,7.04820975]
[1750512910259,0.74,141.89,141.88,7.04820975]
[1750512912874,0.74,141.89,141.88,9.79062285]
[1750512913952,0.74,141.89,141.87,9.79062285]
[1750512914386,0.7,141.89,141.87,9.79062285]
[1750512914576,0.7,141.89,141.88,26.0]
[1750512914883,0.7,141.89,141.86,34.46283489]
[1750512915266,0.7,141.89,141.86,60.46283489]
[1750512915460,5.9742525,141.89,141.86,60.46283489]
[1750512915670,5.2742525,141.89,141.86,60.46283489]
[1750512916375,0.7,141.88,141.86,33.04920344]
[1750512916949,0.7,141.87,141.86,7.04920344]
[1750512917251,0.7,141.87,141.84,7.0501974]
[1750512918773,9.79062285,141.87,141.84,7.0501974]
[1750512918978,0.7,141.86,141.84,7.0501974]
[1750512923193,9.79062285,141.86,141.84,7.0501974]
[1750512923396,0.7,141.85,141.84,7.0501974]
[1750512923692,10.49062285,141.85,141.79,54.5]
[1750512923888,0.7,141.84,141.81,9.79062285]
[1750512924792,0.7,141.84,141.82,7.05119165]
[1750512925189,9.79062285,141.84,141.82,7.05119165]
[1750512925397,0.7,141.83,141.82,7.05119165]
[1750512928508,0.7,141.83,141.8,7.05218617]
[1750512928821,9.79062285,141.83,141.8,7.05218617]
[1750512928977,0.7,141.82,141.8,7.05218617]
[1750512930707,0.7,141.83,141.8,7.05218617]
[1750512930902,9.79062285,141.83,141.8,7.05218617]
[1750512931209,0.7,141.82,141.8,7.05218617]
[1750512931587,9.79062285,141.83,141.8,7.05218617]
[1750512932397,0.7,141.82,141.8,7.05218617]
[1750512935210,9.79062285,141.83,141.8,7.05218617]
[1750512935392,0.7,141.82,141.79,7.05247839]
[1750512935588,0.7,141.81,141.79,7.05247839]
[1750512935790,0.7,141.82,141.79,7.05247839]
[1750512935983,9.79062285,141.83,141.79,7.05247839]
[1750512936187,0.7,141.82,141.79,7.05247839]
[1750512936486,9.79062285,141.83,141.79,7.05247839]
[1750512936686,0.7,141.82,141.79,7.05247839]
[1750512937194,28.44027171,141.81,141.76,7.05417607]
[1750512937407,0.7,141.77,141.72,147.7408]
[1750512937589,0.7,141.76,141.73,9.79062285]
[1750512937786,0.7,141.79,141.74,9.79062285]
[1750512937992,10.49062285,141.79,141.75,9.79062285]
[1750512938287,9.79062285,141.79,141.75,9.79062285]
[1750512938493,0.7,141.78,141.75,9.79062285]
[1750512938915,0.7,141.78,141.76,7.05417607]
[1750512939111,0.7,141.76,141.74,7.05517144]
[1750512939310,0.7,141.75,141.73,7.05545172]
[1750512939893,10.49062285,141.75,141.73,7.05545172]
[1750512940117,0.7,141.74,141.73,7.05545172]
[1750512940897,0.7,141.74,141.71,7.05666502]
[1750512941593,9.79062285,141.73,141.7,7.05696251]
[1750512941798,0.7,141.71,141.7,7.05696251]
[1750512942937,0.7,141.71,141.69,7.05766109]
[1750512943294,0.7,141.72,141.69,16.84828394]
[1750512944708,0.75,141.71,141.69,7.05766109]
[1750512944934,0.75,141.7,141.69,7.05766109]
[1750512945221,0.75,141.7,141.64,41.5615759]
[1750512945222,18.64964886,141.68,141.63,9.79062285]
[1750512945443,26.0,141.71,141.62,7.06114955]
[1750512945603,0.75,141.68,141.64,9.79062285]
[1750512945808,0.75,141.66,141.63,9.79062285]
[1750512946099,0.75,141.65,141.62,7.06114955]
[1750512946302,0.75,141.64,141.62,7.06114955]
[1750512947110,10.54062285,141.64,141.6,16.85276974]
[1750512947302,10.54062285,141.63,141.6,7.06214689]
[1750512947839,6.5045,141.66,141.62,9.79062285]
[1750512947840,10.54062285,141.66,141.62,9.79062285]
[1750512948046,9.79062285,141.66,141.62,9.79062285]
[1750512948234,0.75,141.65,141.61,9.79062285]
[1750512949127,9.79062285,141.66,141.62,9.79062285]
[1750512949433,28.44027171,141.67,141.62,9.79062285]
[1750512949603,9.79062285,141.66,141.61,9.79062285]
[1750512949919,0.75,141.65,141.62,9.79062285]
[1750512950501,0.75,141.62,141.6,7.06214689]
[1750512950701,9.79062285,141.65,141.61,9.79062285]
[1750512950912,0.75,141.64,141.61,9.79062285]
[1750512951132,26.0,141.66,141.62,16.8517724]
[1750512951133,0.75,141.66,141.62,16.8517724]
[1750512951315,0.75,141.65,141.62,7.06114955]
[1750512951727,1.6104,141.68,141.62,7.06114955]
[1750512951728,28.44027171,141.67,141.63,9.79062285]
[1750512952028,29.19027171,141.67,141.62,7.06114955]
[1750512952225,29.19027171,141.67,141.63,9.79062285]
[1750512952719,32.5045,141.69,141.62,7.06114955]
[1750512952720,0.75,141.69,141.64,9.79062285]
[1750512952922,0.75,141.69,141.65,9.79062285]
[1750512953113,0.75,141.66,141.62,34.50464628]
[1750512953316,0.75,141.65,141.62,16.8517724]
[1750512954847,0.75,141.65,141.62,9.79062285]
[1750512955037,9.79062285,141.64,141.6,7.06196558]
[1750512955234,0.75,141.62,141.59,18.34622793]
[1750512955424,0.75,141.6,141.59,1.4931437]
[1750512956632,0.75,141.6,141.59,8.55578936]
[1750512957035,0.75,141.63,141.59,18.34641221]
[1750512957627,0.75,141.63,141.6,9.79062285]
[1750512958047,10.54062285,141.61,141.59,1.4931437]
[1750512958352,19.39964886,141.6,141.59,1.4931437]
[1750512958561,29.19027171,141.6,141.59,1.4931437]
[1750512960947,19.39964886,141.6,141.59,1.4931437]
[1750512961129,29.19027171,141.6,141.59,1.4931437]
[1750512963856,10.54062285,141.6,141.59,1.4931437]
[1750512965654,73.36964886,141.64,141.59,8.55578936]
[1750512965833,29.19027171,141.63,141.59,8.55578936]
[1750512966092,0.75,141.62,141.59,18.34641221]
[1750512966290,9.79062285,141.62,141.59,8.55578936]
[1750512966598,0.75,141.61,141.59,8.55578936]
[1750512967116,0.75,141.61,141.59,1.4931437]
[1750512967405,9.79062285,141.61,141.59,1.4931437]
[1750512967607,10.54062285,141.61,141.59,8.55563334]
[1750512969193,10.0,141.68,141.6,9.79062285]
[1750512969194,0.75,141.67,141.6,9.79062285]
[1750512969396,5.77456034,141.68,141.66,9.79062285]
[1750512969712,7.80597628,141.73,141.67,9.79062285]
[1750512969915,7.80597628,141.73,141.62,1.5195]
[1750512969916,0.75,141.75,141.71,9.79062285]
[1750512970238,10.54062285,141.75,141.69,26.0]
[1750512970532,10.54062285,141.75,141.71,9.79062285]
[1750512970830,0.75,141.74,141.72,7.05616709]
[1750512971212,9.79062285,141.74,141.7,9.79062285]
[1750512971506,0.75,141.73,141.7,9.79062285]
[1750512971711,18.64964886,141.76,141.71,9.79062285]
[1750512971712,9.79062285,141.75,141.71,9.79062285]
[1750512972020,0.75,141.74,141.71,9.79062285]
[1750512972790,0.75,141.74,141.71,16.84686885]
[1750512973922,10.54062285,141.73,141.69,9.79062285]
[1750512974306,0.75,141.73,141.7,9.79062285]
[1750512974800,0.75,141.73,141.7,16.84746698]
[1750512975001,0.75,141.73,141.7,15.84746698]
[1750512975527,10.54062285,141.73,141.7,7.05684413]
[1750512975742,10.50062285,141.72,141.68,9.79062285]
[1750512976035,0.71,141.71,141.68,9.79062285]
[1750512976226,10.50062285,141.71,141.67,16.84928029]
[1750512976933,0.71,141.71,141.68,9.79062285]
[1750512978508,0.71,141.71,141.69,7.05766109]
[1750512981730,0.71,141.71,141.67,9.79062285]
[1750512981731,0.71,141.7,141.68,7.05805028]
[1750512981926,10.50062285,141.7,141.68,7.05805028]
[1750512982130,0.71,141.69,141.68,7.05805028]
[1750512982330,0.71,141.69,141.66,7.05915572]
[1750512982836,0.71,141.69,141.66,16.84977857]
[1750512983412,0.71,141.71,141.66,16.84977857]
[1750512983647,0.71,141.71,141.67,9.79062285]
[1750512984247,0.71,141.71,141.68,7.05815923]
[1750512984412,10.50062285,141.71,141.68,7.05815923]
[1750512984818,0.71,141.7,141.68,7.05815923]
[1750512985941,0.71,141.7,141.67,7.05865744]
[1750512987344,10.50062285,141.71,141.67,7.05865744]
[1750512987545,0.71,141.71,141.67,16.84928029]
[1750512988351,10.50062285,141.71,141.67,16.84928029]
[1750512989050,9.79062285,141.71,141.67,7.05865744]
[1750512989345,0.71,141.7,141.67,7.05865744]
[1750512989730,18.64964886,141.72,141.67,7.05865744]
[1750512990037,0.71,141.7,141.67,7.05865744]
[1750512990242,0.71,141.67,141.64,7.06015249]
[1750512990442,9.79062285,141.66,141.64,7.06015249]
[1750512990749,10.50062285,141.66,141.64,7.06015249]
[1750512991627,10.50062285,141.66,141.63,7.06065099]
[1750512992326,10.50062285,141.65,141.62,7.06112712]
[1750512993944,10.50062285,141.65,141.61,16.85227103]
[1750512994726,9.79062285,141.66,141.61,7.06164818]
[1750512994926,9.79062285,141.66,141.62,9.79062285]
[1750512995230,10.50062285,141.66,141.62,9.79062285]
[1750512995947,9.79062285,141.68,141.64,9.79062285]
[1750512996149,35.79062285,141.69,141.65,9.79062285]
[1750512996329,36.50062285,141.69,141.65,9.79062285]
[1750512996643,9.79062285,141.69,141.65,9.79062285]
[1750512997058,10.50062285,141.7,141.65,9.79062285]
[1750512998036,10.50062285,141.7,141.66,7.05915572]
[1750512998237,10.50062285,141.69,141.66,7.05915572]
[1750512999553,9.79062285,141.69,141.66,7.05915572]
[1750513000252,9.79062285,141.69,141.63,24.71227847]
[1750513000454,9.79062285,141.69,141.65,9.79062285]
[1750513002257,9.79062285,141.69,141.63,24.71227847]
[1750513002457,9.79062285,141.69,141.66,7.05915572]
[1750513002634,10.50062285,141.69,141.66,7.05915572]
[1750513003579,0.71,141.71,141.66,34.49766788]
[1750513003741,5.23101082,141.73,141.68,9.79062285]
[1750513003742,10.50062285,141.73,141.68,9.79062285]
[1750513003948,0.71,141.72,141.68,9.79062285]
[1750513004456,0.69,141.71,141.68,9.79062285]
[1750513004759,0.69,141.71,141.67,9.79062285]
[1750513005557,0.69,141.71,141.68,7.05815923]
[1750513005741,9.79062285,141.72,141.68,16.84878208]
[1750513005939,10.48062285,141.72,141.68,16.84878208]
[1750513006338,10.48062285,141.72,141.68,7.05815923]
[1750513006640,10.48062285,141.72,141.68,16.84878208]
[1750513007250,9.79062285,141.72,141.68,7.05815923]
[1750513007460,10.48062285,141.7,141.68,7.05815923]
[1750513008466,10.48062285,141.7,141.67,7.05865744]
[1750513010264,9.79062285,141.7,141.66,17.64788931]
[1750513010470,0.69,141.69,141.66,9.79062285]
[1750513011538,0.69,141.69,141.67,7.05865744]
[1750513012563,0.69,141.68,141.67,7.05865744]
[1750513013566,0.69,141.68,141.65,7.05965407]
[1750513016263,10.48062285,141.69,141.65,7.05965407]
[1750513016867,10.48062285,141.69,141.65,16.85027692]
[1750513018771,10.48062285,141.69,141.65,7.05965407]
[1750513018972,10.48062285,141.69,141.65,16.85027692]
[1750513020273,10.48062285,141.69,141.65,7.05965407]
[1750513021676,0.69,141.69,141.65,7.05965407]
[1750513023471,0.69,141.69,141.65,16.85027692]
[1750513024867,9.79062285,141.69,141.65,7.05965407]
[1750513025083,0.69,141.66,141.65,7.05965407]
[1750513025250,10.48062285,141.66,141.62,17.65284589]
[1750513025452,10.48062285,141.66,141.63,7.06065099]
[1750513025650,0.69,141.66,141.63,7.06065099]
[1750513025857,10.48062285,141.66,141.63,7.06065099]
[1750513026049,0.69,141.65,141.62,7.06095344]
[1750513026301,0.69,141.65,141.59,1.4931437]
[1750513026302,0.69,141.62,141.59,1.4931437]
[1750513026582,36.48062285,141.6,141.59,1.4931437]
[1750513027266,41.73188961,141.6,141.59,1.4931437]
[1750513027465,60.38153847,141.6,141.51,9.79062285]
[1750513027661,60.38153847,141.6,141.48,7.06813683]
[1750513027662,9.79062285,141.52,141.48,7.06813683]
[1750513027867,9.79062285,141.53,141.49,9.79062285]
[1750513028061,7.50124106,141.56,141.48,7.06813683]
[1750513028267,9.79062285,141.52,141.48,16.85875968]
[1750513028588,0.69,141.54,141.48,34.52910177]
[1750513028900,10.48062285,141.54,141.5,15.85776065]
[1750513029258,10.48062285,141.54,141.5,6.0671378]
[1750513029459,10.48062285,141.54,141.5,15.85776065]
[1750513029765,9.79062285,141.54,141.5,33.52560517]
[1750513030286,9.79062285,141.55,141.5,23.73498232]
[1750513030590,9.79062285,141.55,141.51,9.79062285]
[1750513030805,10.48062285,141.56,141.52,24.73148671]
[1750513030994,6.81,141.59,141.53,9.79062285]
[1750513031167,9.79062285,141.58,141.53,9.79062285]
[1750513031496,9.79062285,141.59,141.55,9.79062285]
[1750513031669,10.48062285,141.6,141.52,26.33518671]
[1750513032080,0.69,141.58,141.55,9.79062285]
[1750513032590,0.69,141.58,141.54,9.79062285]
[1750513032762,0.69,141.58,141.55,7.06464146]
[1750513033187,0.69,141.58,141.55,24.72624513]
[1750513033386,10.48062285,141.58,141.55,24.72624513]
[1750513034172,9.79062285,141.58,141.55,7.06464146]
[1750513034372,0.73,141.57,141.55,7.06464146]
[1750513034876,0.73,141.57,141.53,24.72973927]
[1750513035079,0.73,141.57,141.54,9.79062285]
[1750513035986,0.73,141.57,141.55,7.06464146]
[1750513036292,10.52062285,141.58,141.55,7.06464146]
[1750513036500,25.71137502,141.61,141.51,7.0666384]
[1750513036665,9.79062285,141.54,141.51,7.0666384]
[1750513036991,9.79062285,141.56,141.51,34.52385725]
[1750513037359,9.79062285,141.56,141.52,9.79062285]
[1750513037691,10.52062285,141.57,141.52,9.79062285]
[1750513037999,0.73,141.57,141.53,9.79062285]
[1750513038175,0.73,141.57,141.54,7.06514059]
[1750513038379,0.73,141.57,141.54,16.85576344]
[1750513038974,10.52062285,141.57,141.54,7.06514059]
[1750513039891,0.73,141.62,141.56,9.79062285]
[1750513040078,0.73,141.62,141.54,26.30449208]
[1750513040403,0.73,141.6,141.54,24.72799208]
[1750513040691,26.73,141.6,141.57,9.79062285]
[1750513041192,26.73,141.6,141.54,24.72799208]
[1750513041392,35.79062285,141.6,141.55,9.79062285]
[1750513041693,0.73,141.59,141.55,9.79062285]
[1750513041885,10.52062285,141.59,141.55,9.79062285]
[1750513042080,10.52062285,141.59,141.56,7.06414241]
[1750513042081,0.73,141.59,141.56,7.06414241]
[1750513042285,0.73,141.59,141.56,16.85476526]
[1750513043681,26.0,141.6,141.57,9.79062285]
[1750513043880,0.73,141.62,141.58,9.79062285]
[1750513044090,9.79062285,141.62,141.59,7.06264566]
[1750513044291,0.73,141.6,141.59,7.06264566]
[1750513044499,10.52062285,141.62,141.59,7.06264566]
[1750513045283,9.79062285,141.62,141.59,7.06264566]
[1750513045599,0.73,141.61,141.59,7.06264566]
[1750513045794,9.79062285,141.61,141.59,7.06264566]
[1750513045985,10.52062285,141.6,141.57,7.06364342]
[1750513046296,10.52062285,141.59,141.57,7.06364342]
[1750513047476,10.52062285,141.58,141.54,16.85576344]
[1750513047673,10.52062285,141.58,141.54,7.06514059]
[1750513048296,0.73,141.57,141.53,24.7287314]